bitfinex-derivatives/quotes_SOLF0:USTF0_20250820
["timestamp","ask_amount","ask_price","bid_price","bid_amount"]
[1755725751294,2.79,186.01,185.98,8.2567]
[1755725751695,132.28,186.02,185.98,8.2567]
[1755725751895,2.79,186.0,185.98,8.2567]
[1755725752893,2.79,186.0,185.98,2.88]
[1755725753291,135.07,186.02,185.98,2.88]
[1755725753496,135.07,186.02,185.99,2.88]
[1755725754096,2.79,186.01,185.99,2.88]
[1755725754702,2.79,186.01,185.98,5.3764]
[1755725754902,2.79,186.01,185.98,8.2564]
[1755725755598,2.79,186.01,185.99,5.3764]
[1755725757301,135.31,186.02,185.99,5.3764]
[1755725757698,132.28,186.02,185.99,8.2964]
[1755725757899,3.03,186.01,185.99,2.92]
[1755725758100,3.03,186.01,185.98,1.92509428]
[1755725758394,132.22,186.02,185.98,1.92509428]
[1755725758599,132.22,186.02,185.99,5.3762]
[1755725758802,135.25,186.02,185.98,4.84509428]
[1755725759310,135.25,186.02,186.0,5.3759]
[1755725760110,135.25,186.02,186.01,5.3758]
[1755725760497,135.25,186.02,185.99,2.92]
[1755725760701,135.25,186.02,186.0,5.376]
[1755725761602,135.25,186.02,185.95,2.92]
[1755725761908,3.03,186.0,185.98,1.92509428]
[1755725762110,3.03,185.99,185.98,7.30159428]
[1755725763010,135.25,186.02,185.98,4.84509428]
[1755725763308,3.03,186.01,185.98,4.84509428]
[1755725764503,3.03,186.0,185.99,5.3762]
[1755725766414,132.22,186.02,186.0,5.3761]
[1755725766614,132.22,186.02,185.98,1.92509428]
[1755725766914,132.22,186.02,186.0,2.92]
[1755725767109,132.22,186.02,186.01,5.3758]
[1755725768913,151.60977185,186.03,186.02,5.3755]
[1755725769114,154.63977185,186.03,186.02,5.3755]
[1755725769319,286.79977185,186.03,186.02,5.3755]
[1755725774212,3.03,186.1,186.02,4.84509428]
[1755725774413,3.03,186.1,186.05,1.92509428]
[1755725774619,132.12,186.09,186.05,1.92509428]
[1755725774917,132.12,186.09,186.06,5.3744]
[1755725775117,3.03,186.08,186.06,5.3744]
[1755725775314,132.12,186.07,186.06,2.92]
[1755725775617,132.12,186.07,186.06,5.3742]
[1755725779024,361.5,186.11,186.05,1.92509428]
[1755725779224,132.1,186.1,186.07,4.84509428]
[1755725779520,3.03,186.09,186.06,4.84509428]
[1755725779823,132.1,186.08,186.07,5.3738]
[1755725782021,132.1,186.08,186.05,0.03410238]
[1755725782323,3.03,186.06,186.05,0.03410238]
[1755725787022,164.45896596,186.1,186.05,0.03410238]
[1755725787228,135.01,186.09,186.06,4.71509428]
[1755725787624,135.01,186.09,186.08,5.3738]
[1755725788123,132.04,186.09,186.05,0.03410238]
[1755725788529,2.97,186.07,186.05,0.03410238]
[1755725789530,2.97,186.07,186.06,5.3743]
[1755725790530,135.01,186.09,186.07,5.374]
[1755725791031,135.01,186.09,186.06,5.3743]
[1755725794034,132.04,186.09,186.06,5.3743]
[1755725794224,2.97,186.08,186.06,5.3743]
[1755725797640,2.97,186.08,186.06,5.3744]
[1755725797841,2.97,186.08,186.05,2.82410238]
[1755725798136,2.97,186.08,186.06,2.79]
[1755725798331,2.97,186.08,186.05,0.03410238]
[1755725798332,132.04,186.09,186.07,2.79]
[1755725798531,135.01,186.09,186.05,0.03410238]
[1755725798740,135.01,186.09,186.06,2.79]
[1755725799033,135.01,186.09,186.05,2.82410238]
[1755725799539,135.01,186.09,186.07,5.3741]
[1755725799936,132.04,186.09,186.07,5.3741]
[1755725800134,2.97,186.08,186.07,5.3741]
[1755725808742,135.01,186.09,186.07,5.3741]
[1755725810243,2.97,186.08,186.06,5.3742]
[1755725810450,2.97,186.06,186.05,0.03410238]
[1755725810642,134.91,186.06,186.05,0.03410238]
[1755725811640,131.94,186.06,186.05,5.40860238]
[1755725812048,134.91,186.06,186.05,5.40860238]
[1755725816550,134.91,186.06,186.05,0.03410238]
[1755725820954,134.91,186.06,185.99,7.31578609]
[1755725820955,135.45,186.06,185.99,7.31578609]
[1755725821154,135.45,186.06,185.97,5.3769]
[1755725821155,3.0,186.03,185.98,4.50578609]
[1755725821355,131.9,186.02,185.98,7.31578609]
[1755725821754,3.0,186.01,185.98,7.31578609]
[1755725821955,131.9,186.02,185.98,7.31578609]
[1755725822260,3.0,186.0,185.98,7.31578609]
[1755725823159,3.0,186.0,185.98,2.81]
[1755725823365,3.0,186.0,185.98,8.1865]
[1755725825959,3.0,186.0,185.98,5.3765]
[1755725826155,3.0,186.0,185.98,8.1865]
[1755725828060,3.0,185.99,185.98,8.1865]
[1755725828261,3.0,186.01,185.98,8.1865]
[1755725830459,131.9,186.02,185.97,7.30199428]
[1755725830665,3.0,186.0,185.97,10.11199428]
[1755725830860,3.0,186.0,185.97,7.30199428]
[1755725831067,3.0,186.0,185.98,2.81]
[1755725837878,131.9,186.02,185.98,2.81]
[1755725838273,3.0,186.01,185.98,2.81]
[1755725844782,3.0,186.01,185.91,6.00771479]
[1755725844783,3.0,186.01,185.95,4.73509428]
[1755725845482,3.0,186.0,185.95,2.81]
[1755725845978,3.01,185.99,185.95,2.81]
[1755725846182,3.01,185.98,185.95,2.81]
[1755725847472,3.01,185.98,185.96,2.96]
[1755725865890,3.01,186.0,185.94,5.3776]
[1755725866284,3.01,186.0,185.94,9.89420139]
[1755725870701,1.92509428,186.01,185.95,5.3774]
[1755725870898,3.01,185.99,185.95,8.3374]
[1755725871302,3.01,185.98,185.95,8.3374]
[1755725871494,3.01,185.98,185.96,2.96]
[1755725872604,4.93509428,186.01,185.96,2.96]
[1755725872903,3.01,186.0,185.97,2.96]
[1755725873103,3.01,185.99,185.97,2.96]
[1755725874901,134.83,186.02,185.98,2.96]
[1755725875102,3.01,186.01,185.99,2.96]
[1755725875307,134.83,186.02,185.96,8.3371]
[1755725877610,131.82,186.02,185.96,2.96]
[1755725878212,3.06,186.01,185.96,2.96]
[1755725878813,3.06,186.0,185.96,2.96]
[1755725879716,131.82,186.02,185.96,2.96]
[1755725879916,3.06,185.99,185.96,2.96]
[1755725880211,1.92509428,186.01,185.92,4.53004812]
[1755725880418,1.92509428,185.99,185.93,7.44004812]
[1755725880613,1.92509428,185.95,185.9,4.53004812]
[1755725880818,3.06,185.92,185.85,4.53004812]
[1755725881114,3.06,185.91,185.85,4.53004812]
[1755725881317,3.06,185.91,185.84,4.53004812]
[1755725881621,1.92509428,185.9,185.82,4.53004812]
[1755725881807,3.06,185.89,185.83,4.83509428]
[1755725884017,3.06,185.89,185.83,2.91]
[1755725885819,4.98509428,185.89,185.83,2.91]
[1755725888822,3.06,185.89,185.83,2.91]
[1755725892525,3.06,185.87,185.81,5.3813]
[1755725893426,174.26250516,185.88,185.81,5.3813]
[1755725893727,3.06,185.85,185.83,2.91]
[1755725894117,3.06,185.92,185.84,4.83509428]
[1755725894324,136.72509428,185.92,185.85,2.91]
[1755725895124,4.98509428,185.92,185.85,2.91]
[1755725895324,131.74,185.91,185.85,2.91]
[1755725896630,131.74,185.91,185.85,5.3803]
[1755725896830,134.8,185.91,185.88,2.91]
[1755725897125,134.8,185.91,185.89,2.91]
[1755725897523,3.06,185.91,185.89,2.91]
[1755725897725,1.92509428,185.92,185.87,2.91]
[1755725897926,131.74,185.92,185.87,2.91]
[1755725898327,131.74,185.92,185.89,2.91]
[1755725898726,134.8,185.92,185.89,2.91]
[1755725899136,134.8,185.92,185.86,1.92509428]
[1755725899333,134.8,185.92,185.86,4.83509428]
[1755725900136,134.8,185.92,185.87,2.91]
[1755725900634,134.8,185.92,185.88,2.91]
[1755725901030,131.74,185.91,185.88,2.91]
[1755725901230,131.74,185.91,185.89,2.91]
[1755725902031,131.74,185.91,185.87,2.91]
[1755725902233,173.62746093,185.93,185.87,2.91]
[1755725902437,131.74,185.92,185.87,2.91]
[1755725902640,173.62746093,185.93,185.87,5.3797]
[1755725902935,131.74,185.92,185.9,2.91]
[1755725903133,131.74,185.92,185.88,1.92509428]
[1755725903134,131.74,185.92,185.91,2.91]
[1755725904637,173.62746093,185.93,185.91,2.91]
[1755725905038,173.62746093,185.93,185.89,5.379]
[1755725905435,173.62746093,185.93,185.91,2.91]
[1755725907538,3.0,185.92,185.89,8.309]
[1755725907842,176.62746093,185.93,185.9,2.93]
[1755725910041,173.62746093,185.93,185.89,5.379]
[1755725910241,173.62746093,185.93,185.91,2.93]
[1755725911332,173.62746093,185.93,185.91,8.3086]
[1755725911538,173.62746093,185.93,185.92,2.93]
[1755725912239,131.74,185.94,185.91,5.3786]
[1755725912444,131.74,185.94,185.93,2.93]
[1755725913541,131.72,185.95,185.93,2.93]
[1755725913844,134.72,185.95,185.93,2.93]
[1755725915746,134.72,185.95,185.93,5.378]
[1755725916049,3.0,186.02,185.94,4.85509428]
[1755725916243,131.72,186.01,185.95,5.3772]
[1755725916439,131.72,186.01,185.94,4.85509428]
[1755725916746,3.0,186.0,185.94,4.85509428]
[1755725917448,3.0,185.99,185.96,5.3771]
[1755725917646,3.0,185.99,185.96,8.3071]
[1755725917846,3.0,186.0,185.96,5.3771]
[1755725918146,131.72,186.01,185.96,5.3771]
[1755725918354,3.0,185.99,185.96,5.3771]
[1755725918750,131.72,186.01,185.96,5.3771]
[1755725918951,3.0,186.0,185.96,5.3771]
[1755725919654,131.72,186.01,185.96,5.3771]
[1755725919854,3.0,185.99,185.96,8.3071]
[1755725920049,3.0,185.98,185.96,8.3071]
[1755725920442,131.72,186.01,185.96,8.3071]
[1755725920742,134.72,186.01,185.98,2.93]
[1755725920942,3.0,186.0,185.98,2.93]
[1755725921145,3.0,186.0,185.98,8.3065]
[1755725921346,131.72,186.01,185.98,8.3065]
[1755725921347,134.72,186.01,185.98,8.3065]
[1755725924055,131.72,186.01,185.99,2.93]
[1755725925157,131.72,186.01,186.0,2.93]
[1755725926957,131.72,186.01,186.0,8.306]
[1755725927150,131.68,186.02,186.0,8.306]
[1755725929356,134.68,186.02,186.0,8.306]
[1755725930658,134.68,186.02,186.0,2.93]
[1755725930858,134.68,186.02,185.99,8.3061]
[1755725937364,3.04,186.01,185.99,8.3061]
[1755725942168,131.64,186.02,185.99,5.3761]
[1755725942465,134.68,186.02,185.99,5.3761]
[1755725942763,131.64,186.02,186.0,1.92509428]
[1755725942969,131.64,186.02,186.01,2.95]
[1755725943261,131.64,186.02,186.0,1.92509428]
[1755725943262,131.62,186.06,186.03,8.3249]
[1755725943464,134.66,186.06,186.03,8.3249]
[1755725943662,131.62,186.06,186.02,4.87509428]
[1755725943965,3.04,186.11,186.05,2.95]
[1755725944162,3.04,186.09,186.06,2.95]
[1755725944362,3.04,186.09,186.07,5.374]
[1755725944562,3.04,186.09,186.07,8.324]
[1755725944763,131.62,186.1,186.07,8.324]
[1755725944967,134.66,186.1,186.07,8.324]
[1755725945569,3.04,186.09,186.07,8.324]
[1755725946068,131.62,186.1,186.07,8.324]
[1755725946367,134.66,186.1,186.07,8.324]
[1755725946768,131.62,186.1,186.07,8.324]
[1755725946969,3.04,186.09,186.07,8.324]
[1755725948869,3.04,186.09,186.07,5.374]
[1755725949570,131.62,186.1,186.08,2.95]
[1755725949770,134.66,186.1,186.08,8.3237]
[1755725950672,131.62,186.1,186.08,8.3237]
[1755725950867,3.04,186.14,186.08,1.92509428]
[1755725951067,131.6,186.13,186.08,1.92509428]
[1755725951270,3.04,186.12,186.1,5.3732]
[1755725951873,131.6,186.13,186.11,5.3729]
[1755725952176,134.64,186.13,186.11,5.3729]
[1755725952472,134.64,186.13,186.11,2.95]
[1755725952875,5.94708491,186.24,186.1,1.92509428]
[1755725952876,1.92509428,186.19,186.1,1.92509428]
[1755725953177,3.04,186.2,186.14,1.92509428]
[1755725953371,131.58,186.19,186.17,5.3709]
[1755725953574,131.58,186.18,186.17,5.3709]
[1755725954170,3.04,186.21,186.18,2.95]
[1755725954378,134.62,186.21,186.18,2.95]
[1755725954672,134.62,186.21,186.19,5.3706]
[1755725954976,134.62,186.24,186.15,2.95]
[1755725955165,134.62,186.24,186.2,5.37]
[1755725955367,3.04,186.23,186.2,5.37]
[1755725955568,3.04,186.23,186.15,2.95]
[1755725956470,3.04,186.23,186.21,5.3699]
[1755725956876,3.04,186.22,186.15,2.95]
[1755725957079,3.04,186.22,186.16,5.3714]
[1755725957580,3.04,186.22,186.15,2.95]
[1755725957886,3.04,186.22,186.15,8.3215]
[1755725958180,3.04,186.22,186.15,2.95]
[1755725958375,3.04,186.22,186.16,5.3713]
[1755725958772,3.04,186.22,186.15,8.3215]
[1755725958969,3.04,186.22,186.15,2.95]
[1755725960179,131.58,186.24,186.18,2.95]
[1755725960380,3.04,186.21,186.15,2.95]
[1755725960880,3.04,186.21,186.18,5.3708]
[1755725961180,3.04,186.2,186.18,5.3708]
[1755725961977,131.58,186.24,186.14,2.99896717]
[1755725961978,131.58,186.24,186.19,5.3706]
[1755725962374,3.04,186.23,186.16,2.95]
[1755725962573,3.04,186.23,186.13,131.02508984]
[1755725962574,288.67046429,186.25,186.21,2.95]
[1755725962770,134.64,186.24,186.21,2.95]
[1755725963184,3.04,186.23,186.18,2.95]
[1755725963381,3.04,186.23,186.19,2.95]
[1755725963581,3.04,186.23,186.2,2.95]
[1755725964083,3.04,186.23,186.21,2.95]
[1755725964786,131.6,186.24,186.21,8.3198]
[1755725965085,134.64,186.24,186.21,8.3198]
[1755725965280,288.67046429,186.25,186.22,5.3694]
[1755725965486,131.68,186.28,186.2,2.95]
[1755725965686,131.68,186.27,186.2,2.95]
[1755725965987,134.5,186.27,186.24,5.3691]
[1755725966485,131.66,186.29,186.25,5.3686]
[1755725966680,0.04039616,186.27,186.25,5.3686]
[1755725967083,131.66,186.3,186.26,5.3685]
[1755725967487,2.82,186.28,186.26,5.3685]
[1755725967688,2.82,186.33,186.25,2.99896717]
[1755725967988,2.82,186.33,186.26,3.03]
[1755725968291,2.82,186.33,186.31,5.3671]
[1755725968488,2.82,186.32,186.31,5.3671]
[1755725968686,131.6,186.34,186.31,5.3671]
[1755725968892,2.82,186.41,186.29,6.02896717]
[1755725969186,2.82,186.41,186.3,3.03]
[1755725969187,2.82,186.4,186.3,3.03]
[1755725969988,2.82,186.4,186.33,5.3665]
[1755725970688,2.82,186.4,186.34,5.3663]
[1755725971284,464.61483243,186.45,186.35,3.03]
[1755725971485,2.82,186.43,186.35,3.03]
[1755725971780,2.82,186.43,186.35,8.3958]
[1755725972183,2.82,186.43,186.35,5.3658]
[1755725972688,461.79483243,186.45,186.33,3.03]
[1755725972893,134.34,186.42,186.33,3.03]
[1755725973294,134.34,186.42,186.37,5.3653]
[1755725973495,2.82,186.41,186.37,5.3653]
[1755725973696,2.82,186.41,186.37,3.03]
[1755725973995,131.52,186.42,186.38,5.365]
[1755725974196,2.82,186.41,186.37,3.03]
[1755725974594,2.82,186.41,186.33,3.03]
[1755725975493,2.82,186.41,186.35,2.99896717]
[1755725975794,2.82,186.41,186.35,6.02896717]
[1755725976697,2.82,186.41,186.37,8.3953]
[1755725976990,2.82,186.41,186.38,5.3649]
[1755725977197,134.46,186.41,186.38,8.3949]
[1755725979092,131.64,186.41,186.39,5.3648]
[1755725979298,131.64,186.41,186.39,8.3948]
[1755725979993,131.64,186.41,186.4,5.3645]
[1755725980396,2.82,186.44,186.4,5.3645]
[1755725980596,134.46,186.43,186.4,5.3645]
[1755725981499,134.46,186.43,186.41,5.3642]
[1755725986698,131.64,186.43,186.41,8.3942]
[1755725986897,0.0339643,186.44,186.43,8.3937]
[1755725987101,2.99896717,186.57,186.43,8.3937]
[1755725987102,131.58,186.5,186.43,3.03]
[1755725987304,131.58,186.49,186.43,3.03]
[1755725987504,2.82,186.48,186.42,2.99896717]
[1755725988304,2.82,186.48,186.43,0.03599058]
[1755725988603,2.82,186.46,186.43,5.39949058]
[1755725988804,2.82,186.48,186.43,0.03599058]
[1755725989204,2.82,186.47,186.43,0.03599058]
[1755725989508,2.82,186.45,186.43,0.03599058]
[1755725989701,2.82,186.48,186.43,0.03599058]
[1755725990406,131.58,186.49,186.43,0.03599058]
[1755725990605,2.82,186.45,186.43,0.03599058]
[1755725991110,5.81896717,186.58,186.43,3.06599058]
[1755725991303,131.78,186.57,186.43,3.06599058]
[1755725991503,2.82,186.56,186.43,3.03]
[1755725991700,2.82,186.56,186.47,5.3623]
[1755725992207,2.82,186.56,186.49,5.362]
[1755725992512,2.82,186.56,186.46,3.03]
[1755725993507,2.82,186.59,186.46,3.03]
[1755725993813,132.52,186.58,186.52,5.361]
[1755725994110,2.82,186.56,186.52,3.03]
[1755725994312,2.82,186.55,186.52,3.03]
[1755725994607,2.82,186.55,186.49,3.03]
[1755725995108,2.82,186.57,186.5,8.3916]
[1755725995306,2.82,186.57,186.5,3.03]
[1755725995604,2.82,186.57,186.46,3.03]
[1755725995904,135.28,186.58,186.52,0.03537651]
[1755725996604,2.76,186.57,186.52,0.03537651]
[1755725996808,2.76,186.57,186.54,2.82]
[1755725997004,132.82,186.58,186.52,0.03537651]
[1755725997308,132.82,186.58,186.57,5.3597]
[1755725997508,135.58,186.58,186.57,5.3597]
[1755725997807,135.58,186.58,186.56,5.3599]
[1755725998110,135.58,186.58,186.55,8.1802]
[1755725998311,135.58,186.58,186.52,0.03537651]
[1755725998703,135.58,186.58,186.52,5.39647651]
[1755725999103,135.58,186.58,186.52,0.03537651]
[1755725999911,493.4,186.6,186.54,5.3605]
[1755726000203,2.76,186.59,186.52,0.03537651]
[1755726000401,2.99896717,186.58,186.52,0.03537651]
[1755726001003,2.76,186.57,186.52,0.03537651]
[1755726001202,2.99896717,186.58,186.52,0.03537651]
[1755726001410,2.76,186.55,186.52,0.03537651]
[1755726001607,132.86,186.55,186.52,2.85537651]
[1755726001809,132.86,186.55,186.53,2.82]
[1755726002211,132.86,186.55,186.54,2.82]
[1755726002611,132.86,186.55,186.54,8.1805]
[1755726003314,132.86,186.55,186.54,2.82]
[1755726003606,132.86,186.55,186.52,2.85537651]
[1755726004202,2.76,186.55,186.52,0.03537651]
[1755726004407,132.82,186.56,186.52,0.03537651]
[1755726004606,132.82,186.56,186.53,8.1806]
[1755726005217,132.82,186.56,186.54,2.82]
[1755726005709,132.88,186.59,186.53,2.82]
[1755726006311,132.88,186.59,186.58,5.3594]
[1755726006512,132.88,186.59,186.58,8.1794]
[1755726007510,2.99896717,186.68,186.57,2.82]
[1755726007811,132.98,186.67,186.57,2.82]
[1755726008012,2.76,186.66,186.63,5.3579]
[1755726008213,2.76,186.65,186.63,5.3579]
[1755726008708,132.98,186.67,186.63,5.3579]
[1755726008904,132.98,186.67,186.64,5.3576]
[1755726009102,2.76,186.72,186.61,2.82]
[1755726009305,2.76,186.72,186.53,10.7216]
[1755726009306,2.76,186.72,186.64,2.82]
[1755726009501,133.16,186.71,186.7,5.3559]
[1755726009704,133.26,186.72,186.69,2.82]
[1755726009914,133.24,186.72,186.69,2.82]
[1755726010705,133.24,186.72,186.7,5.3559]
[1755726010903,133.24,186.72,186.65,2.82]
[1755726011812,133.24,186.72,186.66,5.3568]
[1755726013715,133.24,186.72,186.67,5.3567]
[1755726014014,2.76,186.71,186.65,2.82]
[1755726014209,2.76,186.71,186.68,5.3563]
[1755726014713,136.0,186.72,186.68,2.82]
[1755726014909,133.24,186.72,186.65,2.82]
[1755726015312,133.24,186.72,186.7,5.3558]
[1755726015515,2.76,186.71,186.7,5.3558]
[1755726015706,133.24,186.72,186.65,2.82]
[1755726016110,133.24,186.72,186.69,5.356]
[1755726016312,133.24,186.72,186.65,2.82]
[1755726016313,136.0,186.72,186.65,2.82]
[1755726017310,136.0,186.72,186.63,2.99896717]
[1755726017707,2.76,186.81,186.67,2.99896717]
[1755726017913,2.76,186.81,186.72,2.82]
[1755726018315,134.22,186.82,186.78,5.3535]
[1755726018613,134.18,186.83,186.78,5.3535]
[1755726018821,2.76,186.82,186.78,5.3535]
[1755726019019,2.76,186.82,186.79,5.3532]
[1755726019919,2.76,186.82,186.74,2.82]
[1755726020214,2.76,186.82,186.74,5.81896717]
[1755726020414,2.76,186.82,186.8,5.3528]
[1755726020618,134.18,186.83,186.8,5.3528]
[1755726021319,2.76,186.82,186.72,2.82]
[1755726022919,2.76,186.81,186.78,5.3536]
[1755726023314,136.94,186.83,186.78,5.3536]
[1755726023510,2.76,186.82,186.78,5.3536]
[1755726023908,139.72311626,186.91,186.65,200.79273331]
[1755726023909,134.08,186.86,186.74,2.99896717]
[1755726024122,136.84,186.86,186.75,2.82]
[1755726025920,139.72311626,186.91,186.77,2.99896717]
[1755726026125,137.04,186.9,186.83,5.352]
[1755726026426,137.04,186.9,186.8,2.91]
[1755726026628,137.04,186.9,186.83,5.352]
[1755726027713,137.04,186.9,186.82,5.3524]
[1755726027918,2.8,186.88,186.74,2.99896717]
[1755726028119,2.8,186.85,186.74,2.91]
[1755726028624,2.8,186.85,186.75,5.3544]
[1755726028820,2.8,186.85,186.74,2.91]
[1755726029022,5.79896717,186.85,186.74,2.91]
[1755726029324,2.8,186.84,186.77,5.3539]
[1755726029525,2.8,186.82,186.72,2.99896717]
[1755726029828,2.8,186.81,186.72,5.3552]
[1755726030029,2.8,186.81,186.7,2.91]
[1755726030416,2.8,186.81,186.72,5.3553]
[1755726030718,2.8,186.81,186.66,2.99896717]
[1755726030921,2.8,186.78,186.66,2.99896717]
[1755726031122,2.8,186.78,186.7,5.3557]
[1755726031320,2.8,186.78,186.66,2.99896717]
[1755726031723,2.8,186.78,186.67,2.91]
[1755726032028,2.8,186.78,186.65,203.71139222]
[1755726032029,137.0,186.83,186.72,2.99896717]
[1755726032428,137.0,186.83,186.76,5.3539]
[1755726032623,2.8,186.89,186.74,4.69625426]
[1755726032822,2.8,186.87,186.74,7.60625426]
[1755726033020,2.8,186.87,186.74,2.91]
[1755726034521,2.8,186.87,186.76,5.3539]
[1755726035626,2.8,186.87,186.77,5.3538]
[1755726035830,359.9,186.94,186.77,5.3538]
[1755726035831,5.94708491,187.06,186.82,4.69625426]
[1755726036031,2.8,187.08,186.89,4.69625426]
[1755726036226,2.8,187.08,186.81,4.69625426]
[1755726036227,2.8,187.08,186.97,4.69625426]
[1755726036432,2.8,187.08,186.98,2.91]
[1755726036829,137.54,187.08,186.98,2.91]
[1755726037024,137.54,187.08,186.99,4.69625426]
[1755726037229,137.54,187.08,187.0,2.91]
[1755726037629,2.8,187.12,187.0,2.91]
[1755726037826,137.52,187.09,187.0,2.91]
[1755726038230,2.8,187.15,187.02,5.3465]
[1755726038435,137.54,187.14,187.0,2.91]
[1755726038636,2.8,187.13,187.0,2.91]
[1755726038934,2.8,187.13,187.0,8.2572]
[1755726039135,2.8,187.13,187.0,2.91]
[1755726039941,2.8,187.12,187.0,2.91]
[1755726046153,136.92,187.11,187.0,2.91]
[1755726046851,136.9,187.1,187.0,2.91]
[1755726047151,2.8,187.09,187.0,2.91]
[1755726048049,137.02,187.08,187.0,2.91]
[1755726048548,139.82,187.08,186.96,2.91]
[1755726050155,2.8,187.07,186.96,2.91]
[1755726052243,137.02,187.08,186.96,2.91]
[1755726052244,2.8,187.04,186.96,2.91]
[1755726052452,2.8,187.04,187.0,0.03865447]
[1755726052656,2.8,187.02,187.0,0.03865447]
[1755726052856,2.8,187.01,187.0,0.03865447]
[1755726054256,136.74,187.03,187.0,0.03865447]
[1755726054650,2.8,187.02,186.95,2.91]
[1755726055057,2.8,187.02,187.0,0.03615812]
[1755726056050,4.69625426,187.07,187.0,0.03615812]
[1755726056255,137.08,187.06,187.0,0.03615812]
[1755726056458,2.79,187.04,187.0,0.03615812]
[1755726056657,2.79,187.04,186.96,2.89]
[1755726057058,2.79,187.04,187.0,0.03984809]
[1755726058153,7.48625426,187.09,187.0,2.92984809]
[1755726058353,2.79,187.07,187.0,0.03984809]
[1755726065867,7.48625426,187.07,187.0,0.03984809]
[1755726066262,2.9743779,187.05,187.0,0.03984809]
[1755726066469,5.7643779,187.05,187.0,2.92984809]
[1755726066663,139.53,187.04,187.0,2.92984809]
[1755726067063,2.79,187.03,187.0,0.03984809]
[1755726067972,136.74,187.04,187.0,0.03984809]
[1755726068164,139.53,187.04,187.0,0.03984809]
[1755726068968,2.9743779,187.06,187.0,0.03984809]
[1755726069169,136.56,187.05,187.01,2.89]
[1755726069368,2.9743779,187.06,187.01,2.89]
[1755726069568,136.54,187.05,187.01,2.89]
[1755726071168,2.79,187.06,187.01,2.89]
[1755726071368,136.52,187.04,187.01,2.89]
[1755726071573,136.46,187.03,187.01,2.89]
[1755726071974,136.46,187.03,187.0,0.03984809]
[1755726072166,2.79,187.1,187.02,2.89]
[1755726072374,139.3543779,187.09,187.02,2.89]
[1755726072972,139.3543779,187.09,187.04,0.03457301]
[1755726073170,2.79,187.08,187.04,0.03457301]
[1755726073466,139.3543779,187.09,187.04,0.03457301]
[1755726073875,2.79,187.05,187.04,0.03457301]
[1755726074374,139.3543779,187.09,187.04,0.03457301]
[1755726074575,2.79,187.05,187.04,0.03457301]
[1755726075769,2.79,187.05,186.96,2.89]
[1755726075972,2.9743779,187.03,186.96,2.89]
[1755726076177,5.7643779,187.03,186.96,2.89]